bitfinex/quotes_SOLUSD_20241021
["timestamp","ask_amount","ask_price","bid_price","bid_amount"]
[1729514539026,6.0342,165.72,165.67,6.6255797]
[1729514539230,20.0,165.74,165.67,0.5897797]
[1729514539438,6.0342,165.73,165.67,6.6255797]
[1729514540448,6.0343,165.72,165.67,6.6255797]
[1729514540964,43.776884,165.76,165.67,0.5897797]
[1729514541256,16.0551,165.68,165.67,0.5897797]
[1729514541455,45.867684,165.68,165.67,0.5897797]
[1729514541758,65.867684,165.68,165.67,0.5897797]
[1729514545664,66.9131843,165.68,165.67,0.5897797]
[1729514546885,23.1363003,165.68,165.67,0.5897797]
[1729514547834,1.0455003,165.68,165.67,0.5897797]
[1729514548671,7.0812003,165.68,165.67,0.5897797]
[1729514548843,1.0455003,165.68,165.67,0.5897797]
[1729514550152,6.0351,165.7,165.67,0.5897797]
[1729514550362,1.04516321,165.69,165.67,0.5897797]
[1729514550556,7.08046321,165.69,165.67,0.5897797]
[1729514550803,1.04516321,165.69,165.67,0.5897797]
[1729514551064,16.4661,165.72,165.67,0.5897797]
[1729514551248,7.07973283,165.71,165.67,0.5897797]
[1729514551451,1.04513283,165.71,165.67,6.6257797]
[1729514552355,7.08003283,165.71,165.67,0.5897797]
[1729514552557,1.04513283,165.71,165.67,0.5897797]
[1729514552758,1.04513283,165.71,165.67,6.6257797]
[1729514552974,1.04513283,165.71,165.67,0.5897797]
[1729514553374,6.0351,165.7,165.67,0.5897797]
[1729514554778,7.07983283,165.71,165.67,0.5897797]
[1729514555166,1.04513283,165.71,165.67,0.5897797]
[1729514555371,6.035,165.7,165.67,0.5897797]
[1729514556760,1.04513283,165.71,165.67,6.6256797]
[1729514557637,1.04513283,165.71,165.68,21.1246]
[1729514557770,1.04513283,165.71,165.68,15.0889]
[1729514558382,1.04513283,165.71,165.7,6.035]
[1729514558554,6.0332,165.75,165.7,6.035]
[1729514558762,1.04485959,165.74,165.7,15.0873]
[1729514558957,1.04485959,165.74,165.73,6.0339]
[1729514559159,15.0766,165.82,165.73,6.0339]
[1729514559160,6.0317,165.79,165.73,6.0339]
[1729514559378,6.0317,165.79,165.74,6.0333]
[1729514559379,1.04470546,165.76,165.74,6.0333]
[1729514559583,12.12144606,165.79,165.75,6.0331]
[1729514559773,22.3428,165.8,165.75,6.0331]
[1729514559968,1.04463857,165.78,165.75,6.0331]
[1729514560163,1.04463857,165.78,165.74,21.1172]
[1729514561662,1.04463857,165.78,165.75,6.0331]
[1729514562784,6.0331,165.76,165.71,6.0344]
[1729514563087,7.07693857,165.78,165.73,6.0335]
[1729514563983,1.04463857,165.78,165.74,6.0335]
[1729514564483,1.04463857,165.78,165.75,4.97]
[1729514564779,21.04463857,165.78,165.75,4.97]
[1729514564986,6.0328,165.76,165.7,6.0347]
[1729514565287,6.0337,165.74,165.7,15.0871]
[1729514565878,15.9939,165.77,165.7,21.122]
[1729514566071,15.9939,165.77,165.67,15.4159797]
[1729514566072,20.0,165.75,165.67,15.6798797]
[1729514566275,6.0339,165.73,165.68,6.0356]
[1729514566977,29.810484,165.74,165.69,6.0352]
[1729514568984,23.776884,165.74,165.68,21.1248]
[1729514569491,29.810484,165.74,165.69,6.0351]
[1729514570212,23.776884,165.74,165.69,6.0351]
[1729514570373,6.034,165.73,165.69,6.0351]
[1729514570703,6.034,165.73,165.68,21.1248]
[1729514571393,20.0,165.73,165.67,0.5897797]
[1729514571573,6.0346,165.71,165.67,0.5897797]
[1729514572372,20.0,165.73,165.68,6.0355]
[1729514572567,26.0339,165.73,165.68,6.0355]
[1729514572775,6.0343,165.72,165.67,15.6795797]
[1729514574193,6.0346,165.71,165.67,0.5897797]
[1729514574394,6.0354,165.69,165.67,0.5897797]
[1729514574722,6.0357,165.68,165.67,0.5897797]
[1729514574988,23.776884,165.69,165.67,0.5897797]
[1729514575301,29.812384,165.69,165.67,0.5897797]
[1729514576370,39.868484,165.69,165.67,0.5897797]
[1729514576567,29.812584,165.68,165.67,0.5897797]
[1729514577899,49.812584,165.68,165.67,0.5897797]
[1729514578891,43.776884,165.68,165.55,0.4]
[1729514579097,20.0,165.65,165.55,0.5]
[1729514579299,23.776884,165.64,165.55,0.4]
[1729514579476,26.0371,165.65,165.59,6.0389]
[1729514579873,6.0364,165.66,165.61,6.0382]
[1729514580195,1.04568127,165.65,165.63,6.0375]
[1729514580398,1.04568127,165.65,165.62,6.0375]
[1729514580611,1.04568127,165.65,165.56,5.61844345]
[1729514580775,6.0372,165.64,165.58,6.039]
[1729514581096,6.0371,165.64,165.59,6.0388]
[1729514581277,1.04568127,165.65,165.63,6.0373]
[1729514581494,1.04568127,165.65,165.55,0.6]
[1729514581810,1.04568127,165.65,165.62,6.0378]
[1729514582005,1.04568127,165.65,165.62,6.0376]
[1729514582702,1.04568127,165.65,165.59,6.039]
[1729514583104,6.0381,165.62,165.55,15.5009]
[1729514583286,23.776884,165.64,165.55,0.4]
[1729514583610,7.08258127,165.65,165.6,6.0386]
[1729514583789,1.04568127,165.65,165.62,6.0378]
[1729514584328,1.04568127,165.65,165.6,6.0384]
[1729514584543,7.08268127,165.65,165.6,6.0384]
[1729514584682,7.08268127,165.65,165.56,30.1994]
[1729514584683,1.04568127,165.65,165.56,30.1994]
[1729514584995,1.04568127,165.65,165.61,6.0382]
[1729514588204,1.04568127,165.65,165.58,30.1968]
[1729514588438,1.04568127,165.65,165.64,6.0371]
[1729514590620,16.0916,165.69,165.65,6.0365]
[1729514590805,17.13703892,165.69,165.65,6.0365]
[1729514591847,17.13703892,165.69,165.65,6.0368]
[1729514593411,6.0359,165.68,165.64,15.0923]
[1729514594714,17.13703892,165.69,165.57,30.2987]
[1729514594715,6.0363,165.67,165.62,6.0379]
[1729514595809,23.17253892,165.69,165.64,6.0369]
[1729514596312,6.0357,165.68,165.64,6.0369]
[1729514597695,6.0357,165.68,165.63,21.1311]
[1729514597890,23.17243892,165.69,165.64,6.0371]
[1729514599098,17.13703892,165.69,165.65,6.0365]
[1729514599300,17.13703892,165.69,165.61,30.1914]
[1729514599525,17.13703892,165.69,165.64,6.0368]
[1729514599803,23.17243892,165.69,165.64,6.0368]
[1729514600419,17.13703892,165.69,165.65,6.0366]
[1729514601221,1.04543892,165.69,165.67,6.0357]
[1729514603617,1.04543892,165.69,165.66,21.1271]
[1729514604004,1.04543892,165.69,165.67,6.036]
[1729514604223,1.04543892,165.69,165.66,15.0907]
[1729514604429,1.04543892,165.69,165.66,21.127]
[1729514607228,1.04543892,165.69,165.63,30.1877]
[1729514607229,1.04543892,165.69,165.6,52.1284]
[1729514607410,6.0358,165.68,165.63,6.0374]
[1729514607748,1.04543892,165.69,165.65,6.0367]
[1729514607928,1.04543892,165.69,165.63,15.0929]
[1729514608134,7.08103892,165.69,165.63,15.0929]
[1729514608297,6.0357,165.68,165.64,6.0371]
[1729514608729,6.0357,165.68,165.63,21.1304]
[1729514608927,23.776884,165.68,165.56,21.3337]
[1729514609221,6.0369,165.65,165.6,6.0383]
[1729514610116,6.0365,165.66,165.61,6.0381]
[1729514611322,7.08208178,165.66,165.61,6.0381]
[1729514611724,7.08208178,165.66,165.6,15.0963]
[1729514611910,7.08208178,165.66,165.62,6.0378]
[1729514612837,6.0369,165.65,165.6,21.1349]
[1729514613039,6.0369,165.65,165.61,6.0381]
[1729514613517,7.08208178,165.66,165.61,6.0381]
[1729514615227,7.08208178,165.66,165.56,21.4337]
[1729514615228,1.04558178,165.66,165.58,0.1]
[1729514615432,1.04558178,165.66,165.65,6.0368]
[1729514615737,15.1831,165.71,165.69,6.035]
[1729514615936,1.04511685,165.7,165.67,6.0357]
[1729514617130,1.04511685,165.7,165.62,30.2895]
[1729514617486,1.04511685,165.7,165.68,6.0354]
[1729514620137,23.776884,165.69,165.62,6.0376]
[1729514620424,6.0362,165.67,165.62,6.0376]
[1729514621537,6.036,165.67,165.62,6.0378]
[1729514623933,22.142,165.68,165.63,6.0372]
[1729514625934,16.1063,165.68,165.63,6.0372]
[1729514626114,6.0361,165.67,165.63,6.0372]
[1729514626642,6.0361,165.67,165.58,30.1968]
[1729514626643,1.04511685,165.7,165.59,0.1]
[1729514626826,1.04511685,165.7,165.66,6.0361]
[1729514627039,1.04511685,165.7,165.62,0.1]
[1729514627220,1.04511685,165.7,165.67,6.0359]
[1729514627719,1.04511685,165.7,165.62,0.1]
[1729514628129,1.04511685,165.7,165.68,6.0355]
[1729514628727,1.04511685,165.7,165.69,6.0353]
[1729514629629,15.3416,165.72,165.69,6.0353]
[1729514631035,1.04502067,165.73,165.7,6.0349]
[1729514633045,1.04502067,165.73,165.72,6.0342]
[1729514633455,22.4601,165.76,165.72,6.0342]
[1729514633456,16.4272,165.76,165.72,6.0342]
[1729514633653,1.04481259,165.75,165.73,6.0336]
[1729514634037,1.04481259,165.75,165.72,6.0341]
[1729514634948,1.04481259,165.75,165.68,30.1786]
[1729514635553,1.04481259,165.75,165.72,6.0342]
[1729514636147,1.04481259,165.75,165.71,21.1208]
[1729514636354,1.04481259,165.75,165.72,6.0342]
[1729514637939,6.0325,165.77,165.72,6.0342]
[1729514638146,7.07748854,165.77,165.72,6.0342]
[1729514638446,7.07748854,165.77,165.71,15.0865]
[1729514638660,7.07748854,165.77,165.71,21.121]
[1729514640767,1.04498854,165.77,165.72,6.0339]
[1729514640958,1.04498854,165.77,165.73,6.0335]
[1729514641162,1.04498854,165.77,165.72,21.1192]
[1729514642167,7.07738854,165.77,165.72,21.1192]
[1729514642962,6.0338,165.74,165.69,15.0879]
[1729514643163,6.0346,165.72,165.66,21.1273]
[1729514643353,16.3575,165.74,165.66,15.091]
[1729514643560,16.3575,165.74,165.63,21.7577]
[1729514643756,6.035,165.7,165.65,6.0368]
[1729514644577,6.0362,165.67,165.6,15.0962]
[1729514644891,6.0362,165.67,165.62,6.0378]
[1729514646675,6.0372,165.64,165.58,15.0982]
[1729514646845,6.0368,165.65,165.59,6.039]
[1729514647268,6.0368,165.65,165.6,6.0385]
[1729514647966,6.0365,165.66,165.6,6.0385]
[1729514649683,6.0365,165.66,165.61,6.0381]
[1729514652072,6.0365,165.66,165.6,15.0963]
[1729514652262,6.0365,165.66,165.62,6.0379]
[1729514652881,6.0365,165.66,165.61,6.0382]
[1729514654368,6.0369,165.65,165.6,21.1347]
[1729514654572,16.4605,165.67,165.55,0.4]
[1729514654775,16.4605,165.67,165.58,6.0392]
[1729514654776,6.0375,165.63,165.58,6.0392]
[1729514657483,16.4605,165.67,165.58,6.0392]
[1729514657665,43.776884,165.66,165.58,6.0392]
[1729514658360,6.0377,165.63,165.58,6.0392]
[1729514661082,1.04503269,165.65,165.57,15.0988]
[1729514661276,6.0376,165.63,165.58,6.0392]
[1729514663692,6.0374,165.64,165.58,21.1376]
[1729514664068,6.0374,165.64,165.58,15.0983]
[1729514664273,6.0373,165.64,165.59,6.0388]
[1729514667686,6.0373,165.64,165.6,6.0385]
[1729514668895,1.04503269,165.65,165.59,15.0974]
[1729514669080,1.04503269,165.65,165.56,15.1002]
[1729514669284,1.04503269,165.65,165.56,21.1402]
[1729514669285,6.0389,165.6,165.56,21.1402]
[1729514669468,6.0383,165.61,165.57,6.0396]
[1729514671101,7.08193269,165.65,165.6,6.0385]
[1729514671590,6.0372,165.64,165.59,6.0389]
[1729514672667,6.0371,165.64,165.56,6.0398]
[1729514672875,23.776884,165.64,165.55,0.4]
[1729514673177,6.0386,165.6,165.55,6.4403]
[1729514673693,6.0379,165.62,165.56,21.1401]
[1729514674101,6.0382,165.61,165.56,21.1401]
[1729514674600,6.0375,165.63,165.57,6.0393]
[1729514674771,6.0375,165.63,165.58,6.039]
[1729514674976,6.0375,165.63,165.56,6.0401]
[1729514675190,6.0375,165.63,165.58,15.0983]
[1729514675394,6.0375,165.63,165.58,21.1373]
[1729514678094,6.0386,165.61,165.56,6.0401]
[1729514678389,6.039,165.6,165.55,21.5412]
[1729514678698,15.0932,165.64,165.56,15.1]
[1729514679000,7.08345101,165.62,165.57,6.0396]
[1729514679208,6.0383,165.61,165.57,6.0396]
[1729514679371,6.0392,165.59,165.55,0.4]
[1729514679688,6.0392,165.59,165.55,6.4404]
[1729514680096,16.13455101,165.62,165.55,6.4404]
[1729514680097,6.0387,165.6,165.55,6.4404]
[1729514680289,6.0396,165.58,165.55,0.4]
[1729514680485,16.13455101,165.62,165.55,0.4]
[1729514680889,22.17245101,165.62,165.57,6.0395]
[1729514681799,22.17245101,165.62,165.57,6.0397]
[1729514683393,6.0389,165.6,165.56,15.0998]
[1729514683704,6.0383,165.61,165.56,21.1398]
[1729514683878,6.0383,165.61,165.56,15.0998]
[1729514684278,6.0383,165.61,165.56,21.1398]
[1729514686181,16.13455101,165.62,165.56,15.0998]
[1729514686379,22.17275101,165.62,165.57,6.0394]
[1729514686811,6.0382,165.61,165.57,6.0394]
[1729514690620,6.0396,165.58,165.55,0.4]
[1729514690997,15.0966,165.6,165.55,0.4]
[1729514691194,6.0396,165.58,165.55,0.4]
[1729514692031,6.0397,165.57,165.55,0.4]
[1729514692414,23.776884,165.61,165.55,0.4]
[1729514692712,6.0398,165.57,165.55,0.4]
[1729514695312,23.776884,165.61,165.5,1.725]
[1729514695313,20.0,165.55,165.5,1.725]
[1729514695517,6.0412,165.53,165.5,1.725]
[1729514695812,15.0975,165.59,165.54,6.0408]
[1729514695813,6.0392,165.59,165.54,6.0408]
[1729514695994,6.039,165.59,165.51,6.0419]
[1729514696319,15.5279,165.6,165.52,30.2078]
[1729514696611,15.5279,165.6,165.54,15.102]
[1729514696798,15.5279,165.6,165.56,6.0399]
[1729514697001,15.5279,165.6,165.56,6.04]
[1729514698720,21.5665,165.6,165.55,21.1413]
[1729514699429,22.61187816,165.6,165.55,21.1413]
[1729514700216,16.57327816,165.6,165.51,0.1]
[1729514700511,16.57327816,165.6,165.54,6.0408]
[1729514700512,6.0392,165.59,165.54,6.0408]
[1729514701223,6.039,165.59,165.53,6.0411]
[1729514701595,16.57327816,165.6,165.5,1.725]
[1729514701881,16.57327816,165.6,165.52,6.0414]
[1729514701882,6.0401,165.57,165.52,6.0414]
[1729514702925,23.776884,165.59,165.51,15.1045]
[1729514703127,6.0404,165.56,165.51,15.1045]
[1729514703429,6.0404,165.56,165.51,21.1461]
[1729514703805,23.776884,165.59,165.51,21.1461]
[1729514704110,6.0405,165.55,165.51,21.1461]
[1729514704926,6.5586,165.56,165.5,1.725]
[1729514705735,22.61187816,165.6,165.55,6.0401]
[1729514705936,16.57327816,165.6,165.56,6.0399]
[1729514706096,1.04537816,165.6,165.57,6.0395]
[1729514706297,12.03778908,165.62,165.51,0.1]
[1729514706526,12.03778908,165.62,165.56,6.0399]
[1729514706527,1.04506376,165.6,165.56,6.0399]
[1729514707228,1.04506376,165.6,165.54,0.1]
[1729514707527,1.04506376,165.6,165.51,0.1]
[1729514707528,12.03778908,165.62,165.61,6.0382]
[1729514708421,1.04471147,165.67,165.64,6.0368]
[1729514708617,1.04471147,165.67,165.61,0.1]
[1729514708835,1.04471147,165.67,165.65,6.0366]
[1729514710138,1.04471147,165.67,165.64,15.0927]
[1729514710328,1.04471147,165.67,165.65,6.0364]
[1729514710638,1.04471147,165.67,165.64,15.0927]
[1729514710943,1.04471147,165.67,165.65,6.0367]
[1729514711239,1.04471147,165.67,165.64,15.0927]
[1729514712049,6.0365,165.66,165.6,6.0383]
[1729514712211,6.0369,165.65,165.6,6.0383]
[1729514712660,15.5872,165.66,165.58,21.1374]
[1729514712828,20.0,165.65,165.53,30.206]
[1729514713035,20.0,165.65,165.56,6.0397]
[1729514713036,6.0379,165.62,165.56,6.0397]
[1729514716123,6.0379,165.62,165.56,15.1001]
[1729514716317,6.0379,165.62,165.56,21.1398]
[1729514716731,6.0374,165.64,165.58,6.0392]
[1729514716935,6.0374,165.64,165.55,0.1]
[1729514717133,15.5872,165.66,165.57,0.1]
[1729514717327,7.08081147,165.67,165.62,6.0378]
[1729514717623,12.03220925,165.69,165.58,0.1]
[1729514717826,12.03220925,165.69,165.63,6.0373]
[1729514717827,6.0358,165.68,165.63,6.0373]
[1729514718436,6.0358,165.68,165.64,6.0371]
[1729514718657,18.06770925,165.69,165.64,6.0371]
[1729514718958,6.0359,165.68,165.63,21.1313]
[1729514719324,12.03220925,165.69,165.63,21.1313]
[1729514719325,6.0361,165.67,165.63,15.0938]
[1729514719536,12.03220925,165.69,165.56,30.3005]
[1729514719741,6.0371,165.65,165.56,30.3005]
[1729514720049,6.0371,165.65,165.6,6.0386]
[1729514722951,20.0,165.68,165.61,6.0379]
[1729514723525,6.0363,165.67,165.61,6.0379]
[1729514724054,20.0,165.68,165.57,0.1]
[1729514724355,6.0363,165.67,165.62,6.0377]
[1729514724757,6.0363,165.67,165.62,21.1321]
[1729514726544,12.03220925,165.69,165.59,0.1]
[1729514726732,6.036,165.67,165.62,6.0376]
[1729514727053,6.036,165.67,165.62,21.1318]
[1729514728426,6.0358,165.68,165.63,6.0373]
[1729514728746,12.03220925,165.69,165.64,0.1]
[1729514728947,6.1319874,165.71,165.68,6.0354]
[1729514729248,6.1319874,165.71,165.64,0.1]
[1729514729420,6.1319874,165.71,165.65,15.0916]
[1729514729625,6.1319874,165.71,165.66,6.0364]
[1729514730148,12.1668874,165.71,165.65,15.0916]
[1729514730543,12.1668874,165.71,165.65,21.1283]
[1729514730825,6.1319874,165.71,165.64,4.97]
[1729514731126,6.0361,165.67,165.64,4.97]
[1729514731325,6.0357,165.68,165.64,4.97]
[1729514731549,6.0357,165.68,165.62,6.0378]
[1729514733939,6.036,165.68,165.62,6.0378]
[1729514734541,6.036,165.68,165.63,6.0374]
[1729514735547,6.0353,165.7,165.63,0.1]
[1729514735744,6.0353,165.7,165.65,6.0365]
[1729514735942,6.0353,165.7,165.65,21.1283]
[1729514737143,6.1319874,165.71,165.65,15.0918]
[1729514737351,6.1319874,165.71,165.67,6.036]
[1729514738282,12.1666874,165.71,165.66,21.1271]
[1729514738442,12.1666874,165.71,165.66,21.2271]
[1729514738950,6.1319874,165.71,165.65,15.0099]
[1729514739157,6.1319874,165.71,165.64,0.1]
[1729514739158,6.0357,165.68,165.63,6.0094]
[1729514739369,6.0363,165.67,165.62,0.1]
[1729514739542,6.0363,165.67,165.62,8.9]
[1729514739962,6.0358,165.68,165.62,14.9376]
[1729514740258,6.036,165.68,165.62,6.1376]
[1729514740463,6.036,165.68,165.63,6.0373]
[1729514741137,6.036,165.68,165.64,6.0371]
[1729514742881,6.036,165.68,165.63,6.0375]
[1729514743074,6.0364,165.67,165.62,21.2322]
[1729514743377,30.1032,165.7,165.6,6.1383]
[1729514743556,6.0367,165.66,165.61,6.0382]
[1729514743874,30.1032,165.7,165.61,6.0382]
[1729514744443,6.0363,165.67,165.61,6.0382]
[1729514744962,6.0365,165.66,165.61,6.0382]
[1729514745539,30.1032,165.7,165.6,0.1]
[1729514745750,30.1032,165.7,165.64,6.0371]
[1729514745751,6.0356,165.69,165.64,6.0371]
[1729514746577,6.035,165.7,165.65,6.0366]
[1729514746765,6.0354,165.69,165.65,6.0366]
[1729514748259,6.0354,165.69,165.64,21.1295]
[1729514748475,6.1319874,165.71,165.64,0.1]
[1729514748653,6.1319874,165.71,165.67,0.1]
[1729514748870,15.0819,165.77,165.69,6.035]
[1729514749477,6.0337,165.74,165.69,6.035]
[1729514750888,6.0335,165.74,165.7,15.0868]
[1729514751390,22.54199323,165.78,165.69,6.0352]
[1729514751562,6.0339,165.73,165.69,6.0352]
[1729514752083,22.54199323,165.78,165.71,6.0345]
[1729514752377,6.0334,165.75,165.7,21.1221]
[1729514752553,6.0335,165.74,165.7,21.1221]
[1729514752754,6.0332,165.75,165.7,21.1221]
[1729514752977,16.3546,165.78,165.7,15.0872]
[1729514753192,46.5156,165.78,165.67,15.0898]
[1729514753472,6.0345,165.72,165.68,6.0357]
[1729514753987,6.0339,165.73,165.69,6.0353]
[1729514754972,6.0347,165.71,165.67,15.0898]
[1729514755177,6.0342,165.72,165.67,21.1255]
[1729514755574,6.0342,165.72,165.68,6.0356]
[1729514757380,6.0338,165.74,165.69,6.035]
[1729514757573,6.0338,165.74,165.7,6.0349]
[1729514758070,20.0,165.77,165.7,6.0349]
[1729514758280,6.0334,165.75,165.7,21.122]
[1729514759074,27.10696432,165.77,165.68,6.0356]
[1729514759275,12.02586432,165.77,165.68,6.0356]
[1729514759462,6.0343,165.72,165.68,6.0356]
[1729514762683,12.02586432,165.77,165.7,0.1]
[1729514762884,12.02586432,165.77,165.72,6.0341]
[1729514763181,12.02586432,165.77,165.67,0.1]
[1729514763374,6.0333,165.75,165.71,6.0343]
[1729514763986,6.0333,165.75,165.67,0.1]
[1729514764180,6.0333,165.75,165.7,6.0349]
[1729514764897,6.0335,165.74,165.7,6.0349]
[1729514765782,6.0328,165.76,165.72,6.0342]
[1729514765981,6.0328,165.76,165.67,0.1]
[1729514765982,12.02586432,165.77,165.67,0.1]
[1729514766178,6.0334,165.75,165.7,21.1214]
[1729514767085,12.02586432,165.77,165.69,0.1]
[1729514767299,12.02586432,165.77,165.71,0.1]
[1729514767495,12.02586432,165.77,165.73,21.1181]
[1729514767890,12.02586432,165.77,165.71,0.1]
[1729514768197,12.02586432,165.77,165.74,21.1166]
[1729514769192,16.60873652,165.82,165.75,0.1]
[1729514769394,21.5951,165.82,165.78,6.032]
[1729514769613,30.669,165.87,165.76,0.1]
[1729514769829,30.669,165.87,165.72,30.1701]
[1729514769830,6.12982501,165.85,165.73,0.1]
[1729514769994,6.0319,165.79,165.74,6.0334]
[1729514770269,6.0319,165.79,165.75,6.0331]
[1729514770586,15.5968,165.8,165.74,15.0833]
[1729514770783,15.5968,165.8,165.71,6.0344]
[1729514770784,6.033,165.76,165.71,6.0344]
[1729514771096,6.0332,165.75,165.71,6.0344]
[1729514771395,6.0328,165.76,165.71,6.0344]
[1729514771986,6.0346,165.71,165.66,6.0361]
[1729514772195,6.0353,165.69,165.65,15.092]
[1729514772484,6.0356,165.69,165.63,6.0374]
[1729514772914,6.035,165.71,165.65,6.0367]
[1729514773687,6.035,165.71,165.66,6.0363]
[1729514776708,23.776884,165.72,165.65,15.092]
[1729514777185,15.4668,165.66,165.59,6.0389]
[1729514777243,6.0371,165.64,165.59,15.0973]
[1729514777391,23.776884,165.65,165.59,15.0973]
[1729514777702,43.776884,165.65,165.56,6.0401]
[1729514778001,43.776884,165.65,165.55,21.1407]
[1729514778399,6.0386,165.61,165.56,6.0399]
[1729514778584,6.0377,165.63,165.57,6.0395]
[1729514778892,6.0377,165.63,165.58,6.0391]
[1729514779896,43.776884,165.65,165.6,6.0386]
[1729514779897,29.813684,165.65,165.6,6.0386]
[1729514780096,15.4668,165.66,165.56,0.1]
[1729514780304,15.4668,165.66,165.58,0.1]
[1729514780574,15.4668,165.66,165.62,6.0376]
[1729514781004,15.4668,165.66,165.63,6.0372]
[1729514781186,15.4668,165.66,165.58,0.1]
[1729514781386,23.776884,165.65,165.59,15.0975]
[1729514781606,6.0375,165.64,165.59,15.0975]
[1729514782209,6.0375,165.64,165.59,21.1363]
[1729514784514,23.776884,165.65,165.6,6.0385]
[1729514784515,6.0369,165.65,165.6,6.0385]
[1729514785197,6.0369,165.65,165.59,15.0975]
[1729514785403,15.9938,165.7,165.61,0.1]
[1729514785615,15.9938,165.7,165.66,6.0361]
[1729514786089,12.0285218,165.74,165.64,0.1]
[1729514786419,18.0621218,165.74,165.68,6.0354]
[1729514787292,12.0285218,165.74,165.7,6.0349]
[1729514787504,12.0285218,165.74,165.71,6.0345]
[1729514788302,12.0285218,165.74,165.68,0.1]
[1729514788508,21.6991,165.79,165.69,0.1]
[1729514788699,21.6991,165.79,165.75,6.0331]
[1729514789309,15.5024,165.79,165.75,6.0331]
[1729514789513,15.5024,165.79,165.76,6.0327]
[1729514789712,6.031,165.81,165.76,6.0327]
[1729514791021,22.2692,165.83,165.78,6.0319]
[1729514791361,6.031,165.81,165.75,6.0329]
[1729514791621,6.031,165.81,165.72,30.1713]
[1729514791848,6.031,165.81,165.76,6.0326]
[1729514792700,6.0306,165.82,165.76,6.0328]
[1729514793188,6.0306,165.82,165.77,6.0323]
[1729514794797,28.2998,165.83,165.77,6.0322]
[1729514795516,28.2998,165.83,165.78,6.032]
[1729514796421,6.031,165.81,165.76,21.1139]
[1729514796715,6.0299,165.84,165.8,6.0313]
[1729514796900,26.0299,165.84,165.79,21.1107]
[1729514797098,20.0,165.84,165.77,6.0322]
[1729514797308,1.14433827,165.87,165.77,6.0324]
[1729514797309,6.0308,165.82,165.77,6.0324]
[1729514799736,43.776884,165.85,165.77,6.0324]
[1729514799898,6.031,165.81,165.77,6.0324]
[1729514800100,20.0,165.82,165.74,0.1]
[1729514800298,20.0,165.82,165.79,6.0317]
[1729514800626,20.0,165.82,165.71,0.1]
[1729514800923,0.1,165.86,165.72,6.0341]
[1729514800924,6.0327,165.77,165.72,6.0341]
[1729514801098,30.394284,165.79,165.68,21.2096]
[1729514801326,6.0335,165.74,165.69,6.0353]
[1729514801705,6.0335,165.74,165.7,6.0349]
[1729514802104,20.0,165.78,165.71,6.0345]
[1729514802328,6.0324,165.77,165.71,6.0345]
[1729514802520,6.0329,165.76,165.68,0.1]
[1729514802819,26.0323,165.78,165.73,6.0337]
[1729514803227,6.0325,165.77,165.72,21.1195]
[1729514804728,6.0328,165.76,165.72,21.1195]
[1729514804906,6.0328,165.76,165.72,15.0854]
[1729514806208,6.0328,165.76,165.72,21.1196]
[1729514807027,6.0335,165.74,165.69,15.088]
[1729514807204,6.0335,165.74,165.69,21.1231]
[1729514807410,6.0343,165.72,165.67,15.0901]
[1729514807604,23.776884,165.77,165.68,6.0357]
[1729514807605,23.776884,165.75,165.68,6.0357]
[1729514807807,6.0342,165.73,165.69,6.0352]
[1729514808245,23.776884,165.75,165.69,6.0352]
[1729514808421,20.0,165.78,165.7,15.0874]
[1729514808422,23.776884,165.77,165.7,15.0874]
[1729514809533,6.0329,165.76,165.71,6.0346]
[1729514811338,29.809284,165.77,165.72,6.0339]
[1729514811734,23.776884,165.77,165.73,15.0845]